{"text_format":"1","workbook":"xlsx","n_sheets":6,"sheets":["poistná zmluva","vl.1 Zivel","vl.2 Odcudzenie","vl.3 Elektronika a stroje","vl.4 Sklo","vl.5 Zodpovednost"],"not_rendered":{"charts":0,"images":0,"macros":1,"external_links":0,"defined_names":6,"comments":1,"pivot_tables":0},"unopened":[],"bounds":{"document_bytes":16777216,"sheet_cells":100000,"rows_first":2000,"rows_last":500,"rows_between":2000,"halvings":0,"cell_chars":16384,"cell_head_chars":4096},"cells_cut":0,"cells_raw":0,"read":"whole","date_system":"1900"}

{"sheet":"poistná zmluva","index":0,"n_rows":92,"n_cols":30,"rows_kept":92,"cut":false,"hidden":false,"merged":[[0,0,0,22],[52,1,52,5],[46,2,46,17],[45,18,45,22],[72,1,72,22],[43,18,43,22],[43,13,43,17],[44,18,44,22],[43,0,43,1],[44,0,44,1],[8,0,8,22],[10,0,10,22],[12,0,12,22],[13,0,13,22],[36,0,36,22],[41,0,41,1],[44,13,44,17],[44,2,44,10],[44,11,44,12],[80,1,80,22],[49,0,49,22],[45,0,45,1],[50,1,50,5],[51,1,51,5],[65,1,65,22],[45,11,45,12],[45,2,45,10],[45,13,45,17],[74,1,74,22],[75,1,75,22],[73,1,73,22],[46,18,46,22],[39,2,40,10],[2,0,2,22],[18,0,18,22],[41,18,41,22],[39,18,40,22],[41,11,41,12],[39,11,40,12],[41,2,41,10],[4,0,4,22],[5,0,5,22],[6,0,6,22],[7,0,7,22],[29,1,29,22],[30,1,30,22],[20,0,20,22],[21,0,21,22],[16,0,16,22],[14,0,14,22],[15,0,15,22],[27,1,27,22],[28,1,28,22],[24,6,24,22],[91,1,91,9],[90,1,90,9],[59,1,59,22],[90,13,90,21],[91,13,91,21],[71,1,71,22],[81,1,81,22],[68,0,68,22],[79,1,79,22],[61,5,61,10],[62,5,62,10],[63,1,63,22],[64,1,64,22],[89,1,89,9],[89,13,89,21],[83,0,83,9],[83,12,83,22],[76,1,76,22],[77,1,77,22],[78,1,78,22],[56,5,56,10],[57,5,57,10],[58,5,58,10],[50,6,50,22],[51,6,51,22],[55,5,55,10],[52,6,52,22],[53,1,53,5],[53,6,53,22],[31,1,31,22],[32,1,32,22],[39,13,40,17],[43,11,43,12],[42,18,42,22],[41,13,41,17],[42,13,42,17],[33,1,33,22],[34,1,34,22],[39,0,40,1],[43,2,43,10],[42,0,42,1],[42,11,42,12],[35,1,35,22],[42,2,42,10],[38,0,38,22]]}
["POISTNÁ ZMLUVA"]
[]
["POISTENIE MAJETKU"]
[]
["Union poisťovňa, a. s., Bajkalská 29/A, 813 60 Bratislava",null,null,null,null,null,null,null,null,null,null,null,null,null,null,null,null,null,null,null,null,null,null,null,null,"číslo poistnej zmluvy:","11-4-11952",null,"áno"]
["IČO: 31322051 / DIČ: 2020800353",null,null,null,null,null,null,null,null,null,null,null,null,null,null,null,null,null,null,null,null,null,null,null,null,"účinnosť zmluvy: ","2016-01-01",null,"nie"]
["zapísaná v Obchodnom registri Okresného súdu Bratislava I., odd. Sa, vl.č. 383/B",null,null,null,null,null,null,null,null,null,null,null,null,null,null,null,null,null,null,null,null,null,null,null,null,"podpis za klienta:","Mgr. Péter  Molnár"]
["v zastúpení :  Prvá Komunálna Finančná, a.s.",null,null,null,null,null,null,null,null,null,null,null,null,null,null,null,null,null,null,null,null,null,null,null,null,"funkcia klienta:","starosta obce"]
["(ďalej len „poisťovateľ“)",null,null,null,null,null,null,null,null,null,null,null,null,null,null,null,null,null,null,null,null,null,null,null,null,"Miesto podpisu","Keť"]
[null,null,null,null,null,null,null,null,null,null,null,null,null,null,null,null,null,null,null,null,null,null,null,null,null,"IČO: ","00 307 190"]
["a",null,null,null,null,null,null,null,null,null,null,null,null,null,null,null,null,null,null,null,null,null,null,null,null,"DIČ: ",null,null,"Alikvótne poistné:"]
[null,null,null,null,null,null,null,null,null,null,null,null,null,null,null,null,null,null,null,null,null,null,null,null,null,"podpis za PKF: ","Mgr. Jarmila    Cserhelyiová"]
["Obec  Keť",null,null,null,null,null,null,null,null,null,null,null,null,null,null,null,null,null,null,null,null,null,null,null,null,"funkcia: ","obchodná riaditeľka",null,"ročné poistné",{"$f":"S47","v":731.31999999999982}]
["935 64 Obecný úrad, Keť  č.34",null,null,null,null,null,null,null,null,null,null,null,null,null,null,null,null,null,null,null,null,null,null,null,null,"dátum podpisu: ","2015-12-21",null,"do konca roka",{"$f":"(DATE(YEAR(AA6),12,31)-AA6+1)","v":366}]
[null,null,null,null,null,null,null,null,null,null,null,null,null,null,null,null,null,null,null,null,null,null,null,null,null,"počet splátok:",4,null,"baza pre alikvotne",{"$f":"IF(OR(MONTH(AA6)>=3,1-DATE(YEAR(AA6),1,1)+DATE(YEAR(AA6),12,31)=365),365,366)","v":366}]
[{"$f":"Z10&AA10&\"/ \"&Z11&AA11","v":"IČO: 00 307 190/ DIČ: "},null,null,null,null,null,null,null,null,null,null,null,null,null,null,null,null,null,null,null,null,null,null,null,null,null,null,null,"alikvotne do konca roka",{"$f":"ROUND(AD13/AD15*AD14,2)","v":731.32}]
["(ďalej len „poistený“)",null,null,null,null,null,null,null,null,null,null,null,null,null,null,null,null,null,null,null,null,null,null,null,null,null,null,null,"počet splátok do konca roka",{"$f":"IF(AND(AA15=4,AA6<DATE(YEAR(AA6),4,1)),4,IF(AND(AA15=4,AA6<DATE(YEAR(AA6),7,1)),3,IF(OR(AND(AA15=4,AA6<DATE(YEAR(AA6),10,1)),AND(AA15=2,AA6<DATE(YEAR(AA6),7,1))),2,1)))-1","v":3}]
[null,null,null,null,null,null,null,null,null,null,null,null,null,null,null,null,null,null,null,null,null,null,null,null,null,null,null,null,null,{"$f":"ROUND(AD16-AD17*IF(AA15=4,F56,F62),2)","v":182.83}]
["uzatvárajú"]
[null,null,null,null,null,null,null,null,null,null,null,null,null,null,null,null,null,null,null,null,null,null,null,null,null,null,null,0,{"$f":"DATE(YEAR(AA6),12,31)","v":"2016-12-31"}]
["prostredníctvom spoločnosti  Prvá Komunálna Finančná a.s.",null,null,null,null,null,null,null,null,null,null,null,null,null,null,null,null,null,null,null,null,null,null,null,null,null,null,1,{"$f":"DATE(YEAR(AA6),9,30)","v":"2016-09-30"}]
["podľa § 788 a nasledujúcich Občianského zákonníka a Rámcovej dohody č.RD-03/2015 pre poistenie majetku a poistenie zodpovednosti za škodu právnických osôb túto zmluvu o poistení (ďalej len \"poistná zmluva\").",null,null,null,null,null,null,null,null,null,null,null,null,null,null,null,null,null,null,null,null,null,null,null,null,null,null,2,{"$f":"DATE(YEAR(AA6),6,30)","v":"2016-06-30"}]
[null,null,null,null,null,null,null,null,null,null,null,null,null,null,null,null,null,null,null,null,null,null,null,null,null,null,null,3,{"$f":"DATE(YEAR(AA6),3,31)","v":"2016-03-31"}]
["Účinnosť poistenia: ",null,null,null,null,null,{"$f":"TEXT(AA6,\"dd.mm.yyyy\")&\" (00:00 hod)\"","v":"01.01.2016 (00:00 hod)"}]
[null,null,null,null,null,null,"nie však skôr ako v deň nasledujúci po doručení písomného potvrdenia o jej zverejnení poisťovateľovi, alebo ak takéto potvrdenie nebolo poisťovateľovi doručené v deň nasledujúci po dni jej zverejnenia v Obchodnom vestníku pokiaľ bola zverejnená na návrh poisťovateľa (ust. §5a zák. č. 211/2000 Z.z. a §47a ods. 2 Občianskeho zákonníka)\n",null,null,null,null,null,null,null,null,null,null,null,null,null,null,null,null,null,null,null,null,0,{"$f":"DATE(YEAR(AA6),12,31)","v":"2016-12-31"}]
[null,null,null,null,null,null,null,null,null,null,null,null,null,null,null,null,null,null,null,null,null,null,null,null,null,null,null,1,{"$f":"DATE(YEAR(AA6),6,30)","v":"2016-06-30"}]
["Pre toto poistenie platia:"]
["-","Všeobecné poistné podmienky poistenia majetku pre podnikateľské subjekty VPPPM/0911,"]
["-","Osobitné dojednania pre poistenie majetku proti škodám spôsobeným živelnými rizikami ODŽIV/0911 ku VPPPM/0911,",null,null,null,null,null,null,null,null,null,null,null,null,null,null,null,null,null,null,null,null,null,null,null,null,null,null,{"$f":"\"Číslo poistnej zmluvy\"","v":"Číslo poistnej zmluvy"}]
["-","Osobitné dojednania pre poistenie majetku proti škodám spôsobeným vodou z vodovodných zariadení ODVOD/0911 ku VPPPM/0911,",null,null,null,null,null,null,null,null,null,null,null,null,null,null,null,null,null,null,null,null,null,null,null,null,null,null,{"$f":"\" \"&LEFT(AA5,2)&\"-4\"&RIGHT(AA5,LEN(AA5)-5)","v":" 11-411952"}]
["-","Osobitné dojednania pre poistenie majetku proti škodám spôsobeným odcudzením a vandalizmom ODKRA/0911 ku VPPPM/0911,"]
["-","Osobitné dojednania pre poistenie majetku pre prípad poškodenia alebo zničenia skla ODSKL/0911 ku VPPPM/0911,"]
["-","Osobitné dojednania pre poistenie majetku elektronických a strojných zariadení pre prípad poškodenia alebo zničenia ODLOM/0911 ku VPPPM/0911,"]
["-","Všeobecné poistné podmienky poistenia zodpovednosti za škodu VPPZ/0109,"]
["-","Osobitné dojednania pre poistenie zodpovednosti za škodu spôsobenú pri výkone funkcie člena štatutárneho alebo dozorného orgánu obchodnej spoločnosti a družstva k Všeobecnej poistným podmienkam zodpovednosti za škodu VPPZ/0109,"]
["-","Osobitné dojednania pre poistenie zodpovednosti za škodu miest a obcí,"]
["ďalej tiež prílohy a vložky, ktoré upravujú jednotlivé druhy poistenia, na ktorých sa zmluvné strany v tejto poistnej zmluve dohodli, a ktoré sú súčasťou poistnej zmluvy a poistený svojim podpisom potvrdzuje ich prevzatie."]
[]
["Súhrn poistného:"]
["Číslo vložky",null,"Druh",null,null,null,null,null,null,null,null,"Poistené áno - nie",null,"Celková poistná suma",null,null,null,null,"Ročné poistné"]
[]
["1.",null,"Živelné poistenie",null,null,null,null,null,null,null,null,"áno ",null,{"$f":"'vl.1 Zivel'!N58+'vl.1 Zivel'!N59+'vl.1 Zivel'!N60","v":2502092.23},null,null,null,null,{"$f":"'vl.1 Zivel'!S62","v":451.43999999999994}]
["2.",null,"Poistenie proti odcudzeniu",null,null,null,null,null,null,null,null,"áno",null,{"$f":"SUM('vl.2 Odcudzenie'!N64:R69)","v":340600},null,null,null,null,{"$f":"'vl.2 Odcudzenie'!S70","v":81.680000000000007}]
["3.",null,"Poistenie elektroniky a strojov",null,null,null,null,null,null,null,null,"áno",null,{"$f":"'vl.3 Elektronika a stroje'!N18","v":500},null,null,null,null,{"$f":"'vl.3 Elektronika a stroje'!S18","v":1.68}]
["4.",null,"Poistenie skla",null,null,null,null,null,null,null,null,"áno",null,{"$f":"'vl.4 Sklo'!N25","v":500},null,null,null,null,{"$f":"'vl.4 Sklo'!S25","v":7.52}]
["5.",null,"Poistenie zodpovednosti za škodu",null,null,null,null,null,null,null,null,"áno",null,{"$f":"'vl.5 Zodpovednost'!N20+'vl.5 Zodpovednost'!N21","v":48000},null,null,null,null,{"$f":"'vl.5 Zodpovednost'!S22","v":189}]
[null,null,"Celkové ročné poistné v EUR:",null,null,null,null,null,null,null,null,null,null,null,null,null,null,null,{"$f":"S42+S43+S44+S45+S46","v":731.31999999999982}]
[]
["Platenie poistného"]
["1. Poistený platí poistné na účet sprostredkovateľa prevodným príkazom:"]
[null,"Bankové spojenie:  ",null,null,null,null,"Sberbank Slovensko, a.s., BIC: LUBASKBX"]
[null,"Číslo účtu  ",null,null,null,null,"SK29 3100 0000 0042 2028 9916 "]
[null,"Konštantný symbol:  ",null,null,null,null,3558]
[null,"Variabilný symbol:  ",null,null,null,null,{"$f":"LEFT(AA5,2)&4&(RIGHT(AA5,LEN(AA5)-5))","v":"11411952"}]
["2. Splatnosť poistného: poistné sa bude platiť v štvrťročných splátkach a je splatné nasledovne:"]
[null,null,null,null,"Splátka poistného",{"$f":"S47/4","v":182.82999999999996},null,null,null,null,null,"je splatná  15.01.  príslušného kalendárneho roka"]
[null,null,null,null,"Splátka poistného",{"$f":"S47/4","v":182.82999999999996},null,null,null,null,null,"je splatná  15.04.  príslušného kalendárneho roka"]
[null,null,null,null,"Splátka poistného",{"$f":"S47/4","v":182.82999999999996},null,null,null,null,null,"je splatná  15.07.  príslušného kalendárneho roka"]
[null,null,null,null,"Splátka poistného",{"$f":"S47/4","v":182.82999999999996},null,null,null,null,null,"je splatná  15.10.  príslušného kalendárneho roka"]
["3.",{"$f":"\"Alikvótne poistné za obdobie od \"&TEXT(AA6,\"dd.mm.yyyy\")&\" do \"&TEXT(VLOOKUP(AD17,AB20:AC23,2),\"dd.mm.yyyy\")&\" vo výške \"&AD18&\" EUR je splatné \"&TEXT(AA6+5,\"dd.mm.yyyy\")&\".\"","v":"Alikvótne poistné za obdobie od 01.01.2016 do 31.03.2016 vo výške 182,83 EUR je splatné 06.01.2016."}]
["2. Splatnosť poistného: poistné sa bude platiť v polročných splátkach a je splatné nasledovne:"]
[null,null,null,null,"Splátka poistného",{"$f":"S47/2","v":365.65999999999991},null,null,null,null,null,"je splatná  15.01.  príslušného kalendárneho roka"]
[null,null,null,null,"Splátka poistného",{"$f":"S47/2","v":365.65999999999991},null,null,null,null,null,"je splatná  15.07.  príslušného kalendárneho roka"]
["3.",{"$f":"\"Alikvótne poistné za obdobie od \"&TEXT(AA6,\"dd.mm.yyyy\")&\" do \"&TEXT(VLOOKUP(AD17,AB25:AC26,2),\"dd.mm.yyyy\")&\" vo výške \"&TEXT(AD18,\"# ###,00\")&\" EUR je splatné \"&TEXT(AA6+5,\"dd.mm.yyyy\")&\".\"","v":"Alikvótne poistné za obdobie od 01.01.2016 do 30.06.2016 vo výške 182,83 EUR je splatné 06.01.2016."}]
["2.","Splatnosť poistného: poistné sa bude platiť bez splátok a je splatné 15.01. príslušného kalendárneho roka."]
["3.",{"$f":"\"Alikvotné poistné za obdobie od \"&TEXT(AA6,\"dd.mm.yyyy\")&\" do \"& TEXT(DATE(YEAR(AA6),12,31),\"dd.mm.yyyy\")&\" vo výške \"&TEXT(AD16,\"# ##0,00\")&\" EUR je splatné \"&TEXT(AA6+5,\"dd.mm.yyyy\")&\".\"","v":"Alikvotné poistné za obdobie od 01.01.2016 do 31.12.2016 vo výške 731,32 EUR je splatné 06.01.2016."}]
[]
["Hlásenie poistných udalostí"]
["Poistnú udalosť poistený hlási bez zbytočného odkladu telefonicky na Centrálny dispečing škôd  - tel.: 0850111211"]
[]
["Ďalšie dojednania"]
["1.","Pre toto poistenie platia príslušné ustanovenia Občianského zákonníka, vyššie uvedené všeobecné poistné podmienky, osobitné dojednania a táto poistná zmluva. Všetky vymenované poistné podmienky, osobitné dojednania a prílohy sú nedeliteľnou súčasťou poistnej zmluvy a poistený svojim podpisom poistnej zmluvy potvrdzuje ich prevzatie."]
["2.","Podpoistenie"]
[null,"V prípade stanovenia PS nehnuteľností na východiskovú hodnotu spôsobom uvedeným v tejto poistnej zmluve, poisťovňa nebude uplatňovať námietku podpoistenia."]
["3.","Poistným obdobím je kalendárny rok. Poistenie sa dojednáva na dobu určitú do 27.10.2019."]
["4.","Poistná zmluva je vypracovaná v troch vyhotoveniach, z ktorých každá zo zmluvných strán (poistený a poisťovateľ) a sprostedkovateľ poistenia obdrží po jednom origináli."]
["5.","Osoba, ktorá s poisťovateľom uzavrela poistnú zmluvu, svojím podpisom potvrdzuje, že jej bol(i) pred uzavretím poistnej zmluvy odovzdaný(é) formulár(e) o dôležitých zmluvných podmienkach uzatváranej poistnej zmluvy."]
["6.","V zmysle čl. 15 ods.1 VPPPM/0911 si poistený zvolil poistenie bez indexácie poistnej sumy."]
["7.","Práva a povinnosti poisteného, poistníka a poisťovateľa sú upravené vo vyššie uvedených všeobecných poistných podmienkach a osobitných dojednaniach."]
["8.","Poistník, ktorý má v zmysle zákona č. 211/2000 Z. z. povinnosť zverejňovať zmluvy, je povinný zverejniť túto poistnú zmluvu do 3 dní od jej uzavretia najneskôr však jeden deň pred účinnosťou poistnej zmluvy, a zároveň vydať poisťovateľovi písomné potvrdenie o zverejnení tejto poistnej zmluvy bezodkladne po jej zverejnení."]
["9.","V prípade, ak poistník nedoručí poisťovateľovi potvrdenie o zverejnení tejto poistnej zmluvy v lehote do dvoch mesiacov od jej uzavretia, táto poistná zmluva zanikne. To neplatí ak v tejto lehote bude poistná zmluva zverejnená v Obchodnom vestníku."]
["10.","Pre doručovanie potvrdenia o zverejnení tejto poistnej zmluvy platí, že toto sa považuje za doručené poisťovateľovi dňom doručenia písomného potvrdenia, alebo dňom doručenia potvrdenia telefaxom,  alebo dňom doručenia potvrdenia prostriedkami elektronickej komunikácie."]
[]
[{"$f":"AA9&\", \"&TEXT(AA14,\"dd.mm.yyyy\")","v":"Keť, 21.12.2015"},null,null,null,null,null,null,null,null,null,null,null,{"$f":"AA9&\", \"&TEXT(AA14,\"dd.mm.yyyy\")","v":"Keť, 21.12.2015"}]
[]
[]
[]
[]
[]
[null,"pečiatka a podpis poisteného",null,null,null,null,null,null,null,null,null,null,null,"pečiatka a podpis poisťovateľa"]
[null,{"$f":"AA7","v":"Mgr. Péter  Molnár"},null,null,null,null,null,null,null,null,null,null,null,{"$f":"AA12","v":"Mgr. Jarmila    Cserhelyiová"}]
[null,{"$f":"AA8","v":"starosta obce"},null,null,null,null,null,null,null,null,null,null,null,{"$f":"AA13","v":"obchodná riaditeľka"}]

{"sheet":"vl.1 Zivel","index":1,"n_rows":91,"n_cols":19,"rows_kept":91,"cut":false,"hidden":false,"merged":[[81,2,81,22],[82,2,82,22],[74,12,74,13],[75,12,75,13],[76,17,76,22],[77,1,77,22],[78,1,78,22],[79,2,79,22],[76,1,76,16],[72,1,72,22],[73,1,73,22],[74,1,74,11],[75,1,75,11],[74,17,74,22],[75,17,75,22],[80,2,80,22],[59,0,59,1],[59,2,59,3],[59,4,59,12],[59,13,59,17],[59,18,59,22],[10,24,10,32],[35,1,35,22],[36,1,36,22],[37,1,37,22],[24,1,24,22],[25,1,25,22],[26,1,26,22],[27,1,27,22],[28,1,28,22],[29,1,29,22],[17,0,17,21],[20,1,20,22],[11,1,11,22],[12,1,12,22],[13,1,13,22],[14,1,14,22],[31,1,31,22],[32,1,32,22],[33,1,33,22],[34,1,34,22],[30,1,30,22],[0,0,0,22],[5,1,5,22],[2,0,2,22],[6,1,6,22],[7,1,7,22],[18,1,18,21],[71,1,71,22],[70,1,70,22],[57,0,57,1],[57,4,57,12],[57,2,57,3],[57,18,57,22],[57,13,57,17],[61,18,61,22],[61,4,61,17],[19,1,19,22],[56,18,56,22],[53,0,53,22],[47,1,47,22],[69,1,69,22],[50,1,50,22],[56,13,56,17],[45,1,45,22],[44,1,44,22],[8,1,8,22],[60,0,60,1],[60,2,60,3],[60,4,60,12],[60,13,60,17],[60,18,60,22],[9,1,9,22],[10,1,10,22],[48,1,48,22],[49,1,49,22],[43,1,43,22],[23,1,23,22],[22,0,22,22],[58,2,58,3],[58,4,58,12],[58,13,58,17],[58,0,58,1],[58,18,58,22],[46,1,46,22],[38,1,38,22],[39,1,39,22],[40,1,40,22],[41,1,41,22],[42,1,42,22],[90,1,90,22],[85,1,85,7],[86,1,86,7],[87,1,87,7],[88,1,88,7],[89,1,89,7],[86,8,86,21],[87,8,87,21],[88,8,88,21],[89,8,89,21],[85,8,85,21]]}
["Vložka č. 1"]
[]
["Živelné poistenie"]
[]
["1. Poistenie sa vzťahuje na:"]
["a)",{"$f":"\"Súbor budov, hál a stavieb, vedený v účtovnej evidencii poisteného, na východiskovú hodnotu.\"","v":"Súbor budov, hál a stavieb, vedený v účtovnej evidencii poisteného, na východiskovú hodnotu."}]
["b)",{"$f":"\"Súbor hnuteľného majetku všetkých účtovných tried, vrátane DHM a OTE, strojov prístrojov a zariadení, hnuteľného majetku vedeného na podsúvahových účtoch,\"&\" inventáru a dopravných prostriedkov bez EVČ, prevzatého majetku, zásob vedených v účtovnej evidencii poisteného, na východiskovú hodnotu.\"","v":"Súbor hnuteľného majetku všetkých účtovných tried, vrátane DHM a OTE, strojov prístrojov a zariadení, hnuteľného majetku vedeného na podsúvahových účtoch, inventáru a dopravných prostriedkov bez EVČ, prevzatého majetku, zásob vedených v účtovnej evidencii poisteného, na východiskovú hodnotu."}]
["c)",{"$f":"\"Finančná hotovosť, ceniny\"","v":"Finančná hotovosť, ceniny"}]
["d)","Poistenie pomníkov a ďalších objektov cintorínskej architektúry, na východiskovú hodnotu."]
[null,"Poistná suma je tvorená súčinom limitu maximálneho plnenia zo strany poisťovateľa za jeden pomník a počtu hrobov nachádzajúcich sa na cintoríne evidovaných v rámci pasportizácie hrobových miest."]
[null,"Limit maximálneho plnenia zo strany poisťovateľa za jeden pomník je stanovený v sume 1.300,00 EUR."]
[null,"Stanovená spoluúčasť pre toto riziko je 40,00 EUR za jeden pomník."]
[null,"Poistníkom je organizácia, poisteným vlastník pomníka a ďalších objektov cintorínskej architektúry."]
[null,"V prípade poistnej udalosti poisťovateľ poskytne plnenie poistenému. Organizácia  na požiadanie poisťovateľa poskytne údaje o vlastníkovi a spolupracuje pri likvidácii poistnej udalosti."]
[null,"Vlastníkom pomníkov nie je poistník, ale sa nachádzajú na jeho katastrálnom území."]
[]
["2. Rozsah poistenia, poistené riziká:"]
["Pre poistenie platia a rozsah poistenia určujú:"]
["-","Všeobecné poistné podmienky poistenia majetku pre podnikateľské subjekty VPPPM/0911,"]
["-","Osobitné dojednania pre poistenie majetku proti škodám spôsobeným živelnými rizikami ODŽIV/0911 ku VPPPM/0911,"]
["-","Osobitné dojednania pre poistenie majetku proti škodám spôsobeným vodou z vodovodných zariadení ODVOD/0911 ku VPPPM/0911,"]
[]
["Odchýlne od čl. 3 bod 1 ODŽIV/0911 sa poistenie vzťahuje na škody spôsobené:"]
["a)","požiarom,"]
["b)","výbuchom,"]
["c)","priamym alebo nepriamym úderom blesku,"]
["d)","nárazom alebo zrútením posádkou obsadeného letiaceho telesa, jeho časti alebo jeho nákladu,"]
["e)","víchricou – min. 65 km/h"]
["f)","povodňou alebo záplavou,"]
["g)","ľadovcom,"]
["h)","náhlym zosúvaním pôdy, zrútením skál alebo zemín, pokiaľ k nim nedošlo v súvislosti s priemyselnou alebo stavebnou činnosťou,"]
["i)","zosúvaním alebo zrútením lavín,"]
["j)","pádom stromov, stožiarov a iných premetov, ak nie sú súčasťou poškodenej poistenej veci,"]
["k)","zemetrasením 5° EMS 98"]
["l)","vodou unikajúcou z prívodného alebo odvádzacieho potrubia vodovodných zariadení a z vodovodných zariadení,"]
["m)","kvapalinou alebo parou unikajúcou z ústredného, etážového alebo diaľkového kúrenia,"]
["n)","hasiacim médiom samovoľne unikajúcim zo stabilného hasiaceho zariadenia,"]
["o)","kvapalinou unikajúcou zo solárnych systémov alebo klimatizačných zariadení,"]
["p)","chladiarenským médiom unikajúcim z chladiarenských zariadení a rozvodov,"]
["q)","hasením, strhnutím alebo evakuáciou v dôsledku živelnej udalosti,"]
["r)","atmosférickými zrážkami, ľadovcom a ťarchou snehu,"]
["s)","nečistotami vnikajúcimi otvormi, ktoré vznikli v dôsledku živelnej udalosti, a ak k vniknutiu došlo do 120 hodín po skončení živelnej udalosti,"]
["t)","dymom vznikajúcim pri požiari,"]
["u)","zvýšením hladiny podpovrchovej  vody, ktoré bolo spôsobené povodňou alebo katastrofickým lejakom,"]
["v)","krádež poistených hnuteľných vecí, ku ktorej došlo v priamej súvislosti s vyššie uvedenými náhodnými udalosťami,"]
["w)","ľadochodmi, prívalom bahna,"]
["x)","nárazom dopravného prostriedku,"]
["y)","záplavou následkom búrkového prívalu,"]
["z)","ťarchou snehu a námrazy,"]
["aa)","spätným vystúpením vody z kanalizačného potrubia ak bolo spôsobené atmosférickými zrážkami alebo katastrofickým lejakom."]
["bb)","poškodením prívodného potrubia vodovodného zariadenia, odvádzacieho potrubia, potrubia či telies vykurovacích alebo solárnych systémov, ak k nemu došlo pretlakom kvapaliny alebo pary alebo zamrznutím vody v nich."]
[]
["3.  Miesto poistenia:"]
["Odchýlne od VPPPM/0911 je miestom poistenia adresa uvedená pre jednotlivé predmety poistenia v prílohe k poistnej zmluve s názvom (Zoznam nehnuteľného a hnuteľného majetku)."]
[]
["4. Sadzby a podklady pre výpočet poistného:"]
[null,null,null,null,null,null,null,null,null,null,null,null,null,"Poistná suma",null,null,null,null,"Ročné poistné"]
["a)",null,0.18,null," ‰ (promile) z agregovanej poistnej sumy",null,null,null,null,null,null,null,null,2471356.94,null,null,null,null,{"$f":"ROUND(N58*C58/4000,2)*4","v":444.84}]
["b)",null,0.19,null," ‰ (promile) z agregovanej poistnej sumy",null,null,null,null,null,null,null,null,30235.29,null,null,null,null,5.76]
["c)",null,1.67,null," ‰ (promile) z agregovanej poistnej sumy",null,null,null,null,null,null,null,null,500,null,null,null,null,0.84]
["d)",null,0.25,null," ‰ (promile) z agregovanej poistnej sumy",null,null,null,null,null,null,null,null,null,null,null,null,null,{"$f":"ROUND(N61*C61/4000,2)*4","v":0}]
[null,null,null,null,"Celkové ročné poistné v EUR: ",null,null,null,null,null,null,null,null,null,null,null,null,null,{"$f":"S58+S59+S60+S61","v":451.43999999999994}]
[]
["5. Spoluúčasti: "]
["Pre body a) a b) 100,00 EUR. "]
["Pre bod c)  30,00 EUR."]
["Poistený sa na každej poistnej udalosti podieľa týmito sumami z poistného plnenia."]
[]
["6. Zvláštne dojednania:"]
["1.","Poistenie sa vzťahuje na akékoľvek úmyselné alebo neúmyselné poškodenie alebo zničenie poistenej veci, ak konanie smerovalo k poškodeniu alebo zničeniu poisteného majetku, proti osobe poisteného alebo proti osobe vlastníka alebo správcu poisteného majetku."]
["2.","Ak pri likvidácii poistnej udalosti spôsobenej víchricou sa nebude dať určiť sila vetra, poisťovateľ môže postupovať podľa rozsahu škôd na okolitých nehnuteľnostiach."]
["3.","Dojednáva sa, že živelné a vodovodné poistenie nehnuteľného majetku sa vzťahuje aj na líniové stavby: pozemné komunikácie, chodníky, spevnené plochy, revitalizované centrá obcí, inžinierske siete, vedenie sietí obecného rozhlasu, mosty do dĺžky 50 m, koľajové dráhy, protipovodňové ochranné hrádze, ktoré sú majetkom poisteného a sú uvedené v zozname poisteného majetku."]
["4.","Dojednáva sa, že poisťovateľ uhradí aj náklady nevyhnutné na stavebné úpravy a na demontáž/remontáž ostatných nepoškodených poistených vecí, vykonané v súvislosti so znovuobstaraním alebo opravou veci poškodených, zničených alebo stratených pri poistnej udalosti pri živelnom poistením sú kryté aj následné škody."]
["5.","Výška ročného limitu plnenia z celkovej PS uvedenej v každej PZ samostatne je:"]
[null,"a)  na poistné riziko povodne  a záplavy",null,null,null,null,null,null,null,null,null,null,null,null,null,null,null,"100 % z poistnej sumy"]
[null,"b)  na poistné riziko zemetrasenie",null,null,null,null,null,null,null,null,null,null,null,null,null,null,null,"100 % z poistnej sumy"]
[null,"c)  na poistné riziko komplexný živel (okrem poistných rizík povodne, záplavy a zemetrasenie )",null,null,null,null,null,null,null,null,null,null,null,null,null,null,null,"100 % z poistnej sumy"]
["6.","Poisťovateľ poskytne poistné krytie novonadobudnutého majetku pre všetky predmety poistenia odo dňa zaradenia do účtovnej evidencie poistených organizácií, najviac však do výšky 20% z celkovej poistnej sumy."]
["7.","V zmysle Špecifikácie skupín predmetov poistenia, sú v rámci poistnej zmluvy poistené aj vedľajšie náklady, a to do výšky 20% z poistnej sumy poškodenej nehnuteľnosti. Poistenie vedľajších nákladov sa dojednáva na 1. riziko. Poistené vedľajšie náklady:"]
[null,"a)","náklady na vypratanie"]
[null,"b)","náklady na búranie (strhnutie)"]
[null,"c)","náklady na demontáž a opätovnú montáž"]
[null,"d)","náklady na hasenie/použitie vlastného hasiaceho média/"]
["8.","Pre predmet poistenia \"Finančná hotovosť, ceniny\" vzniká právo na poistné plnenie:"]
[null,"a) ak sú mimo pracovnej doby je finančná hotovosť a ceniny uložené nasledovne:"]
[null,"Max. limit plnenia",null,null,null,null,null,null,"Uloženie"]
[null,"do 331,94 € vrátane",null,null,null,null,null,null,"Schránka s pevným uzáverom okrem prenosných schránok"]
[null,"do 6.638,78  € vrátane",null,null,null,null,null,null,"Trezor pripevnený k stene alebo k podlahe"]
[null,"do 19.916,35 € vrátane",null,null,null,null,null,null,"Trezor zabudovaný v stene alebo v podlahe"]
[null,"nad 19.916,35 €",null,null,null,null,null,null,"Ohňovzdorný trezor alebo pancierová pokladnica s dvoma bezpečnostnými zámkami"]
[null,"b) aj v prípade, ak počas pracovnej doby v čase poistnej  udalosti nie sú dodržané   podmienky zabezpečenia"]

{"sheet":"vl.2 Odcudzenie","index":2,"n_rows":79,"n_cols":19,"rows_kept":79,"cut":false,"hidden":false,"merged":[[0,0,0,22],[68,0,68,1],[68,2,68,3],[68,4,68,12],[68,13,68,17],[68,18,68,22],[66,18,66,22],[67,0,67,1],[67,2,67,3],[67,4,67,12],[67,13,67,17],[67,18,67,22],[66,0,66,1],[28,1,28,22],[66,2,66,3],[29,1,29,22],[30,1,30,22],[65,13,65,17],[55,0,56,4],[56,5,56,22],[65,4,65,12],[41,0,41,4],[36,0,36,4],[45,0,45,4],[41,5,41,22],[35,0,35,4],[37,0,37,4],[38,0,38,4],[38,5,38,22],[42,5,42,22],[2,0,2,22],[5,1,5,22],[14,1,14,21],[6,1,6,22],[9,1,9,22],[10,1,10,22],[13,0,13,21],[17,0,17,22],[15,1,15,22],[35,5,35,22],[36,5,36,22],[37,5,37,22],[23,1,23,22],[24,1,24,22],[26,1,26,22],[27,1,27,22],[18,0,18,22],[19,0,19,22],[20,0,20,22],[22,0,22,22],[25,1,25,22],[34,0,34,4],[34,5,34,22],[78,0,78,22],[69,18,69,22],[69,4,69,17],[62,18,62,22],[59,0,59,22],[64,0,64,1],[64,2,64,3],[64,4,64,12],[64,13,64,17],[64,18,64,22],[65,0,65,1],[65,2,65,3],[77,0,77,22],[65,18,65,22],[66,4,66,12],[66,13,66,17],[42,0,42,4],[49,0,50,4],[51,0,52,4],[62,13,62,17],[63,2,63,3],[43,5,43,22],[44,5,44,22],[45,5,45,22],[53,0,54,4],[48,0,48,4],[63,18,63,22],[55,5,55,22],[43,0,43,4],[53,5,53,22],[54,5,54,22],[49,5,49,22],[50,5,50,22],[52,5,52,22],[51,5,51,22],[63,0,63,1],[63,4,63,12],[63,13,63,17],[48,5,48,22],[44,0,44,4]]}
["Vložka č. 2"]
[]
["Odcudzenie a vandalizmus"]
[]
["1. Poistenie sa vzťahuje na:"]
["a)",{"$f":"\"Súbor budov, hál a stavieb, vedený v účtovnej evidencii poisteného, na východiskovú hodnotu, na prvé riziko, pre riziko odcudzenie stavebných súčastí.\"","v":"Súbor budov, hál a stavieb, vedený v účtovnej evidencii poisteného, na východiskovú hodnotu, na prvé riziko, pre riziko odcudzenie stavebných súčastí."}]
["b)",{"$f":"\"Súbor hnuteľného majetku všetkých účtovných tried, vrátane DHM a OTE, strojov prístrojov a zariadení, hnuteľného majetku vedeného na podsúvahových účtoch,\"&\" inventáru a dopravných prostriedkov bez EVČ, prevzatého majetku, zásob vedených v účtovnej evidencii poisteného, na východiskovú hodnotu\"&\", na prvé riziko, pre riziko odcudzenie.\"","v":"Súbor hnuteľného majetku všetkých účtovných tried, vrátane DHM a OTE, strojov prístrojov a zariadení, hnuteľného majetku vedeného na podsúvahových účtoch, inventáru a dopravných prostriedkov bez EVČ, prevzatého majetku, zásob vedených v účtovnej evidencii poisteného, na východiskovú hodnotu, na prvé riziko, pre riziko odcudzenie."}]
["c)",{"$f":"\"Peniaze, ceniny, stravné lístky v trezore – na prvé riziko, pre riziko odcudzenie.\"","v":"Peniaze, ceniny, stravné lístky v trezore – na prvé riziko, pre riziko odcudzenie."}]
["d)",{"$f":"\"Preprava peňazí poslom, na prvé riziko.\"","v":"Preprava peňazí poslom, na prvé riziko."}]
["e)",{"$f":"\"Súbor stavebných súčastí budov, hál a stavieb, vedený v účtovnej evidencii poisteného, na východiskovú hodnotu, na prvé riziko, pre riziko vandalizmus zistený a nezistený páchateľ.\"","v":"Súbor stavebných súčastí budov, hál a stavieb, vedený v účtovnej evidencii poisteného, na východiskovú hodnotu, na prvé riziko, pre riziko vandalizmus zistený a nezistený páchateľ."}]
["f)",{"$f":"\"Súbor hnuteľného majetku všetkých účtovných tried, vrátane DHM a OTE, strojov, prístrojov a zariadení, dopravných prostriedkov bez EČV, zásob, vedený v účtovnej evidencii poisteného\"&\", na technickú hodnotu, na prvé riziko, pre riziko vandalizmuszistený a  nezistený páchateľ.\"","v":"Súbor hnuteľného majetku všetkých účtovných tried, vrátane DHM a OTE, strojov, prístrojov a zariadení, dopravných prostriedkov bez EČV, zásob, vedený v účtovnej evidencii poisteného, na technickú hodnotu, na prvé riziko, pre riziko vandalizmuszistený a  nezistený páchateľ."}]
[]
["2. Rozsah poistenia, poistené riziká:"]
["Pre poistenie platia a rozsah poistenia určujú:"]
["-","Všeobecné poistné podmienky poistenia majetku pre podnikateľské subjekty VPPPM/0911,"]
["-","Osobitné dojednania pre poistenie majetku proti škodám spôsobeným odcudzením a vandalizmom ODKRA/0911 ku VPPPM/0911,"]
[]
["Odchýlne od ODKRA/0911 sa dojednáva:"]
["Vnútorný vandalizmus znamená úmyselné poškodenie, alebo úmyselné zničenie poistenej veci spáchanej inou osobou ako poisteným tým spôsobom, že si prerazí cestu do chráneného priestoru, prekoná prekážku a poškodí alebo zničí predmet poistenia."]
["Vonkajší vandalizmus znamená, že iná osoba ako poistený spáchal úmyselné poškodenie alebo zničenie verejne prístupnej poistenej veci."]
["Pod pojmom úmyselné poškodenie alebo zničenie poistenej veci sa okrem iného chápe aj estetické poškodenie poistenej veci - poškodenie sprejermi alebo grafitmi."]
[]
["Odchýlne od ODKRA/0911 sa dojednáva, že poistenie pre prípad krádeže sa vzťahuje na situácie, ak páchateľ:"]
["a)","do miesta poistenia sa dostal tak, že ho otvoril nástrojom, ktorý nie je určený na jeho riadne otvorenie,"]
["b)","do miesta poistenia sa dostal iným preukázateľne násilným spôsobom,"]
["c)","v mieste sa skryl, po jeho zamknutí sa veci zmocnil a pri jeho opustení zanechal po sebe stopy, ktoré môžu byť použité ako dôkazný prostriedok,"]
["d)","miesto poistenia otvoril originálnym kľúčom alebo legálne zhotoveným duplikátom, ktorého sa zmocnil krádežou vlámaním alebo lúpežným prepadnutím,"]
["e)","do schránky, ktorej obsah je poistený sa dostal alebo ju otvoril nástrojom, ktorý nie je určený na jej riadne otvorenie,"]
["f)","krádežou, pri ktorej páchateľ preukázateľne prekonal prekážku alebo opatrenie chrániace poistenú vec pred krádežou,"]
["g)","krádežou, pri ktorej boli poistené veci poistenému alebo jeho pracovníkovi zobrané, pretože jeho odpor bol vylúčený v dôsledku telesného stavu po nehode alebo v dôsledku inej príčiny, za ktorú nemôže byť zodpovedný,"]
["h)","lúpežou – zmocnením sa postenej veci tak, že páchateľ použil proti poistenému, jeho pracovníkovi alebo inej osobe násilie, alebo hrozbou násilia."]
[]
["Odchýlne od ODKRA/0911 sa dojednáva nasledovný spôsob zabezpečenia:"]
["Spôsob zabezpečenia hnuteľných vecí v objektoch:"]
["Poistná suma",null,null,null,null,"Postačujúce zabezpečenie"]
["do 6 638,78 EUR vrátane",null,null,null,null,"bezpečnostná cylindrická vložka zabraňujúca vytlačeniu a bezpečnostný štít zabraňujúci rozlomeniu a vylomeniu vložky (na každých vstupných dverách)"]
["do 16 596,96 EUR vrátane",null,null,null,null,"bezpečnostná cylindrická vložka zabraňujúca vytlačeniu a bezpečnostný štít zabraňujúci rozlomeniu a vylomeniu vložky a pridaný ďalší zámok alebo bezpečnostná závora a oplechované dvere alebo presklenné časti zabezpečené funkčnými mrežami (na každých vstupných dverách)"]
["do 66 387,84 EUR vrátane",null,null,null,null,"bezpečnostná cylindrická vložka zabraňujúca vytlačeniu a bezpečnostný štít zabraňujúci rozlomeniu (na každých vstupných dverách) a vylomeniu a objekt zabezpečený elektronickou zabezpečovacou. signalizáciou "]
[" nad  66 387,84 EUR",null,null,null,null,"bezpečnostná cylindrická vložka zabraňujúca vytlačeniu a bezpečnostný štít zabraňujúci rozlomeniu a vylomeniu (na každých vstupných dverách) a objekt zabezpečený elektronickou zabezpečovacou. signalizáciou vyvedenou na pult centrálnej ochrany. "]
[]
["Spôsob zabezpečenia peňazí, cenín a CP:"]
["Max. limit plnenia",null,null,null,null,"Zabezpečenie"]
["do 331,94 € vrátane",null,null,null,null,"Pevný uzáver okrem prenosných schránok"]
["do 6.638,78  € vrátane",null,null,null,null,"Trezor pripevnený k stene alebo k podlahe"]
["do 19.916,35 € vrátane",null,null,null,null,"Trezor zabudovaný v stene alebo v podlahe"]
["nad 19.916,35 €",null,null,null,null,"Trezor alebo pancierová pokladnica s dvoma bezpečnostnými zámkami"]
[]
["Spôsob zabezpečenia prepravy peňazí"]
["Max. limit plnenia",null,null,null,null,"Zabezpečenie"]
["do 3.319,39 € vrátane",null,null,null,null,"Poistený alebo ním poverená osoba"]
[null,null,null,null,null,"Vhodný kufrík alebo uzamykateľná taška"]
["do 16.596,96 € vrátane",null,null,null,null,"Poistený alebo ním poverená osoba + ďalšia osoba vybavená obuškom alebo paralyzérom alebo strelnou zbraňou"]
[null,null,null,null,null,"Bezpečnostný kufrík alebo iný predpísaný spôsob uloženia"]
["do 33.193,92 € vrátane",null,null,null,null,"Poistený alebo ním poverená osoba + ďalšia osoba vybavená strelnou zbraňou"]
[null,null,null,null,null,"Bezpečnostný kufrík alebo iný predpísaný spôsob uloženia"]
["do 165.969,59 € vrátane",null,null,null,null,"Poistený alebo ním poverená osoba vybavená strelnou zbraňou + ďalšia osoba vybavená strelnou zbraňou alebo poistený alebo ním poverená osoba + ďalšie dve osoby vybavené strelnou zbraňou"]
[null,null,null,null,null,"Bezpečnostný kufrík alebo iný predpísaný spôsob uloženia"]
[]
["3.  Miesto poistenia:"]
["Odchýlne od VPPPM/0911 je miestom poistenia adresa uvedená pre jednotlivé predmety poistenia v prílohe k poistnej zmluve s názvom (Zoznam nehnuteľného a hnuteľného majetku)."]
[]
["4. Sadzby a podklady pre výpočet poistného:"]
[null,null,null,null,null,null,null,null,null,null,null,null,null,"Poistná suma",null,null,null,null,"Ročné poistné"]
["a)",null,0.39,null," ‰ (promile) z agregovanej poistnej sumy",null,null,null,null,null,null,null,null,20000,null,null,null,null,{"$f":"ROUND(N64*C64/4000,2)*4","v":7.8}]
["b)",null,1.67,null," ‰ (promile) z agregovanej poistnej sumy",null,null,null,null,null,null,null,null,10000,null,null,null,null,16.72]
["c)",null,5.39,null," ‰ (promile) z agregovanej poistnej sumy",null,null,null,null,null,null,null,null,300,null,null,null,null,1.6]
["d)",null,17.5,null," ‰ (promile) z agregovanej poistnej sumy",null,null,null,null,null,null,null,null,300,null,null,null,null,5.24]
["e)",null,0.13,null," ‰ (promile) z agregovanej poistnej sumy",null,null,null,null,null,null,null,null,300000,null,null,null,null,39]
["f)",null,1.1299999999999999,null," ‰ (promile) z agregovanej poistnej sumy",null,null,null,null,null,null,null,null,10000,null,null,null,null,{"$f":"ROUND(N69*C69/4000,2)*4","v":11.32}]
[null,null,null,null,"Celkové ročné poistné v EUR: ",null,null,null,null,null,null,null,null,null,null,null,null,null,{"$f":"SUM(S64:W69)","v":81.680000000000007}]
[]
["5. Spoluúčasti: "]
["Pre body a) až d): 0,00 EUR"]
["Pre body e) a f): 33,19 EUR"]
["Poistený sa na každej poistnej udalosti podieľa týmito sumami z poistného plnenia."]
[]
["6. Zvláštne dojednania:"]
["1. Dojednáva sa, že poistené veci uložené na voľnom priestranstve sú zabezpečené pre prípad  krádeže svojou polohou. Pod pojmom chránené svojou polohou sa rozumie umiestnenie veci, ktorej odcudzenie si vyžaduje použitie špeciálnych pomôcok (kliešte, zvárací prístroj, uhlová brúska a pod.).     "]
["2. Dojednáva sa, že podmienkou plnenia z poistnej udalosti v prípade krádeže pojazdného pracovného stroja je prekonanie prekážky chrániacej poistenú vec pred odcudzením. "]

{"sheet":"vl.3 Elektronika a stroje","index":3,"n_rows":43,"n_cols":19,"rows_kept":43,"cut":false,"hidden":false,"merged":[[0,0,0,22],[17,0,17,1],[17,4,17,12],[17,2,17,3],[13,0,13,22],[8,0,8,21],[9,1,9,21],[2,0,2,22],[5,1,5,22],[10,1,10,22],[17,18,17,22],[17,13,17,17],[16,18,16,22],[26,0,26,22],[27,1,27,22],[28,1,28,22],[29,1,29,22],[18,4,18,17],[42,0,42,22],[16,13,16,17],[36,1,36,22],[37,1,37,22],[38,1,38,22],[39,0,39,22],[32,1,32,22],[33,0,33,22],[34,0,34,22],[35,1,35,22],[40,0,40,22],[25,0,25,22],[41,0,41,22],[30,1,30,22],[31,1,31,22],[18,18,18,22]]}
["Vložka č. 3"]
[]
["Lom elektroniky a lom stroja"]
[]
["1. Poistenie sa vzťahuje na:"]
["a)",{"$f":"\"Súbor strojov, prístrojov a elektronických zariadení, vedených v účtovnej evidencii poisteného, na východiskovú hodnotu, na prvé riziko.\"","v":"Súbor strojov, prístrojov a elektronických zariadení, vedených v účtovnej evidencii poisteného, na východiskovú hodnotu, na prvé riziko."}]
[]
["2. Rozsah poistenia, poistené riziká:"]
["Pre poistenie platia a rozsah poistenia určujú:"]
["-","Všeobecné poistné podmienky poistenia majetku pre podnikateľské subjekty VPPPM/0911,"]
["-","Osobitné dojednania pre poistenie majetku elektronických a strojných zariadení pre prípad poškodenia alebo zničenia ODLOM/0911 ku VPPPM/0911,"]
[]
["3.  Miesto poistenia:"]
["Odchýlne od VPPPM/0911 je miestom poistenia adresa uvedená pre jednotlivé predmety poistenia v prílohe k poistnej zmluve s názvom (Zoznam nehnuteľného a hnuteľného majetku)."]
[]
["4. Sadzby a podklady pre výpočet poistného:"]
[null,null,null,null,null,null,null,null,null,null,null,null,null,"Poistná suma",null,null,null,null,"Ročné poistné"]
["a)",null,3.34,null," ‰ (promile) z agregovanej poistnej sumy",null,null,null,null,null,null,null,null,500,null,null,null,null,{"$f":"ROUND(N18*C18/4000,2)*4","v":1.68}]
[null,null,null,null,"Celkové ročné poistné v EUR: ",null,null,null,null,null,null,null,null,null,null,null,null,null,{"$f":"S18","v":1.68}]
[]
["5. Spoluúčasti: "]
["Pre bod a) 33,19 EUR"]
["Poistený sa na každej poistnej udalosti podieľa týmito sumami z poistného plnenia."]
[]
["6. Zvláštne dojednania:"]
["1.Poistením elektroniky a strojov je kryté akékoľvek náhle a nepredvídané materiálne poškodenie alebo zničenie elektronických zariadení a strojov."]
["   Právo na plnenie vznikne, ak poistná udalosť bola spôsobená napr.:"]
["-","chybou konštrukcie, chybou materiálu alebo výrobnou chybou (pokiaľ sa na ňu nevzťahuje záruka výrobcu),"]
["-","pádom elektronického zariadenia alebo stroja"]
["-","roztrhnutím v dôsledku odstredivej sily,"]
["-","skratom elektrického prúdu a iným pôsobením elektrického prúdu ( prepätie, indukčné účinky blesku),"]
["-","zlyhaním meracej, regulačnej alebo zabezpečovacej techniky,"]
["-","vniknutím cudzieho predmetu."]
["2. Dojednáva sa, že pri poistení elektroniky a strojov sú kryté aj nasledujúce viacnáklady do výšky poistnej sumy pre každú poistnú udalosť."]
["Jedná sa o odpratávacie, demolačné, demontážne a remontážne náklady vrátane:"]
["-","nákladov posudkového znalca"]
["-","nákladov na hľadanie príčiny škody"]
["-","nákladov na zemné výkopové práce"]
["-","nákladov spojených s leteckou dopravou, s príplatkami za nočnú prácu, prácu nadčas, v nedeľu a počas sviatkov, ako aj expresné poplatky"]
["3. Dojednáva sa, že pri poistení elektroniky a strojov sú kryté aj náklady na leteckú prepravu náhradných dielov a cestovné náklady technikov a expertov zo zahraničia, do výšky poistnej sumy  pre každú poistnú udalosť."]
["4. Dojednáva sa, že poistenie sa vzťahuje aj na nosiče dát pevne zabudovaných v hardwarovej časti riadiacej, alebo regulačnej jednotky poistenej veci, nosiče dát záznamov programového vybavenia strojov."]
["5. Dojednáva sa, že poistenie sa vzťahuje aj na stroje, prístroje a elektronické zariadenia, ktoré tvoria súčasť poistených budov organizácií vedené v účtovnej triede 021 – Budovy, haly a stavby."]
["6. Dojednáva sa, že poistenie sa vzťahuje na všetky elektronické zariadenia a stroje, ktorých dátum zaradenia do účtovnej evidencie jednotlivých organizácií je menej ako 8 rokov."]

{"sheet":"vl.4 Sklo","index":4,"n_rows":30,"n_cols":19,"rows_kept":30,"cut":false,"hidden":false,"merged":[[10,1,10,22],[2,0,2,22],[8,0,8,21],[5,1,5,22],[0,0,0,22],[9,1,9,21],[25,18,25,22],[25,4,25,17],[24,0,24,1],[24,4,24,12],[24,2,24,3],[24,18,24,22],[23,18,23,22],[23,13,23,17],[11,0,11,22],[12,0,12,22],[24,13,24,17],[20,0,20,22]]}
["Vložka č. 4"]
[]
["Rozbitie skla"]
[]
["1. Poistenie sa vzťahuje na:"]
["a)",{"$f":"\"Súbor skiel, na východiskovú hodnotu, na prvé riziko.\"","v":"Súbor skiel, na východiskovú hodnotu, na prvé riziko."}]
[]
["2. Rozsah poistenia, poistené riziká:"]
["Pre poistenie platia a rozsah poistenia určujú:"]
["-","Všeobecné poistné podmienky poistenia majetku pre podnikateľské subjekty VPPPM/0911,"]
["-","Osobitné dojednania pre poistenie majetku pre prípad poškodenia alebo zničenia skla ODSKL/0911 ku VPPPM/0911,"]
["Odchýlne od ODSKL/0911 sa pre prípad poistenia skla dojednáva:"]
["Poistenie vzťahuje pre prípad poškodenia alebo zničenia poistenej veci – všetky druhy tabuľového skla od hrúbky 3 mm, vákuové sklo, sklenené výplne, fólie na sklách, elektronické zabezpečovacie zariadenie vrátane elektronických súčastí – akoukoľvek náhodnou udalosťou, okrem prípadov, ak škody alebo chyby vznikli:"]
["a)","pred účinnosťou poistnej zmluvy,"]
["b)","pri doprave poistených vecí,"]
["c)","pri montáži a demontáži poistených vecí,"]
["d)","v súvislosti s vykonávaním stavebných prác v mieste postenia,"]
["e)","výbuchom nálože, trhaviny, granátu alebo iných výbušných hmôt."]
[]
["3.  Miesto poistenia:"]
["Odchýlne od VPPPM/0911 je miestom poistenia adresa uvedená pre jednotlivé predmety poistenia v prílohe k poistnej zmluve s názvom (Zoznam nehnuteľného a hnuteľného majetku)."]
[]
["4. Sadzby a podklady pre výpočet poistného:"]
[null,null,null,null,null,null,null,null,null,null,null,null,null,"Poistná suma",null,null,null,null,"Ročné poistné"]
["a)",null,15,null," ‰ (promile) z agregovanej poistnej sumy",null,null,null,null,null,null,null,null,500,null,null,null,null,{"$f":"ROUND(N25*C25/4000,2)*4","v":7.52}]
[null,null,null,null,"Celkové ročné poistné v EUR: ",null,null,null,null,null,null,null,null,null,null,null,null,null,{"$f":"S25","v":7.52}]
[]
["5. Spoluúčasti: "]
["Pre bod a) 9,96 EUR"]
["Poistený sa na každej poistnej udalosti podieľa týmito sumami z poistného plnenia."]

{"sheet":"vl.5 Zodpovednost","index":5,"n_rows":86,"n_cols":19,"rows_kept":86,"cut":false,"hidden":false,"merged":[[0,0,0,22],[55,1,55,22],[60,1,60,22],[53,1,53,22],[39,1,39,22],[19,0,19,1],[20,0,20,1],[41,1,41,22],[2,0,2,22],[54,1,54,22],[52,1,52,22],[9,0,9,21],[5,1,5,22],[20,2,20,3],[19,4,19,12],[20,4,20,12],[64,23,64,31],[64,0,64,22],[56,1,56,22],[57,1,57,22],[63,0,63,22],[58,1,58,22],[59,1,59,22],[61,0,61,22],[40,1,40,22],[42,1,42,22],[51,0,51,22],[48,1,48,22],[63,23,63,31],[65,23,65,31],[68,23,68,31],[69,23,69,31],[65,1,65,22],[66,1,66,22],[67,0,67,22],[68,0,68,22],[69,1,69,22],[74,1,74,22],[49,1,49,22],[11,1,11,22],[31,1,31,22],[32,1,32,22],[36,1,36,22],[43,1,43,22],[50,1,50,22],[47,1,47,22],[44,1,44,22],[45,1,45,22],[34,1,34,22],[35,1,35,22],[37,1,37,22],[70,1,70,22],[71,1,71,22],[6,1,6,22],[21,18,21,22],[21,4,21,17],[30,1,30,22],[29,0,29,22],[28,0,28,22],[19,2,19,3],[20,13,20,17],[10,1,10,21],[12,1,12,21],[19,18,19,22],[19,13,19,17],[20,18,20,22],[83,1,83,22],[84,1,84,22],[85,1,85,22],[18,18,18,22],[18,13,18,17],[79,0,79,22],[80,1,80,22],[81,1,81,22],[82,1,82,22],[75,1,75,22],[76,1,76,22],[77,1,77,22],[78,1,78,22],[72,0,72,22],[73,0,73,22],[38,1,38,22]]}
["Vložka č. 5"]
[]
["Poistenie zodpovednosti"]
[]
["1. Poistenie sa vzťahuje na:"]
["a)",{"$f":"\"zodpovednosť právníckej osoby za škody spôsobené inému porušením právnej povinnosti v súvislosti s činnosťou alebo vzťahom poisteného.\"","v":"zodpovednosť právníckej osoby za škody spôsobené inému porušením právnej povinnosti v súvislosti s činnosťou alebo vzťahom poisteného."}]
["b)",{"$f":"\"zodpovednosť poisteného - štatutárneho zástupcu  organizácií za škody spôsobené inému porušením právnej povinnosti v súvislosti s činnosťou alebo vzťahom poisteného.\"","v":"zodpovednosť poisteného - štatutárneho zástupcu  organizácií za škody spôsobené inému porušením právnej povinnosti v súvislosti s činnosťou alebo vzťahom poisteného."}]
[]
["2. Rozsah poistenia, poistené riziká:"]
["Pre poistenie platia a rozsah poistenia určujú:"]
["-","Všeobecné poistné podmienky poistenia zodpovednosti za škodu VPPZ/1114,"]
["-","Osobitné dojednania pre poistenie zodpovednosti za škodu spôsobenú pri výkone funkcie člena štatutárneho alebo dozorného orgánu obchodnej spoločnosti a družstva k Všeobecnej poistným podmienkam zodpovednosti za škodu VPPZ/1114 a "]
["-","Osobitné dojednania pre poistenie zodpovednosti za škodu miest a obcí (ďalej len \"VPP\")."]
[]
["3.  Územná platnosť:"]
["územie Slovenskej republiky a ostatných európskych štátov okrem Turecka."]
[]
["4. Sadzby a podklady pre výpočet poistného:"]
[null,null,null,null,null,null,null,null,null,null,null,null,null,"Poistná suma",null,null,null,null,"Ročné poistné"]
["a)",null,6,null," ‰ (promile) z agregovanej poistnej sumy",null,null,null,null,null,null,null,null,15000,null,null,null,null,{"$f":"ROUND(N20*C20/4000,2)*4","v":90}]
["b)",null,3,null," ‰ (promile) z agregovanej poistnej sumy",null,null,null,null,null,null,null,null,33000,null,null,null,null,{"$f":"ROUND(N21*C21/4000,2)*4","v":99}]
[null,null,null,null,"Celkové ročné poistné v EUR: ",null,null,null,null,null,null,null,null,null,null,null,null,null,{"$f":"S20+S21","v":189}]
[]
["5. Spoluúčasti: "]
["Pre bod a) 33,19 EUR"]
["Pre bod b) 100,00 EUR"]
["Poistený sa na každej poistnej udalosti podieľa týmito sumami z poistného plnenia."]
[]
["6. Zvláštne dojednania pre poistenie zodpovednosti za škodu právnických osôb:"]
["6.1. Odchýlne od VPP sa dojednáva, že:"]
["a)","Z poistenia zodpovednosti za škodu má poistený právo, aby poisťovateľ za neho nahradil poškodeným uplatnené a preukázané nároky na náhradu škody, ktorá vznikla poškodenému na zdraví a usmrtení alebo poškodením, zničením alebo stratou veci ako aj inú majetkovú ujmu (ušlý zisk) vyplývajúcej zo vzniknutej škody, ak poistený za takúto škodu zodpovedá podľa príslušných právnych predpisov."]
["b)","Poistenie zodpovednosti právnických osôb sa vzťahuje na také škody, ku ktorým došlo v dobe trvania poistenia a za ktorú poistený právne zodpovedá v dôsledku skutočností uvedených v rozsahu poistenia (princíp „loss occurence“)."]
["c)","Predmet poistenia: Zodpovednosť za škody poisteného vzniknuté v priebehu výkonu  jeho činností vyplývajúcich so všetkých platných právnych predpisov, nariadení a rozhodnutí štátnych orgánov regulujúcich a upravujúcich jeho činnosť, najmä Zákona č. 369/1990 Zb. o obecnom zriadení v znení neskorších predpisov."]
["6.2. Dojednáva sa , že poistenie sa ďalej vzťahuje na škody:"]
["a)","vzniknuté na veciach (hnuteľných a nehnuteľných), ktoré si poistený alebo za neho konajúce osoby požičali, prenajali alebo ich inak užívajú a na veciach (hnuteľných a nehnuteľných), ktoré poistený prevzal, aby na nich vykonal objednanú činnosť okrem vecí, ktoré poistený prevzal na základe leasingovej zmluvy, "]
["b)","spôsobené na prenajatých budovách a ostatných nehnuteľnostiach,"]
["c)","spôsobené na veciach, ktoré poistený používa a na veciach, ktoré poistený prevzal na spracovanie, opravu, úpravu, predaj, úschovu, uskladnenie alebo poskytnutie odbornej pomoci,"]
["d)","vzniknuté inému v súvislosti s činnosťou alebo vzťahom poisteného, na zdraví alebo usmrtením vrátane škôd, ktoré vznikli v súvislosti so zabezpečením  povinností poisteného vyplývajúcich z ustanovení Zákona č. 448/2008 Z.z. o sociálnych službách,"]
["e)","vzniknuté dieťaťu alebo žiakovi v súvislosti s činnosťou alebo vzťahom poisteného, na zdraví alebo usmrtením pri výchove a vzdelávaní, alebo v priamej súvislosti s výchovou a so vzdelávaním, pokiaľ poistený za škodu zodpovedá v dôsledku svojho konania alebo vzťahu v dobe trvania poistenia,"]
["f)","vzniknuté vynaložením nákladov na liečebnú starostlivosť, dávky nemocenského a dôchodkového poistenia ako regresné náhrady nákladov liečenia zdravotnou poisťovňou a regresné náklady Sociálnej poisťovne, vrátane regresných náhrad vzniknutých v dôsledku chorôb z povolania a pracovných úrazov zamestnancov,"]
["g)","na veciach, ktoré si zamestnanec odložil pri plnení pracovných úloh alebo v priamej súvislosti  s ním na mieste na to určenom, a ak nie je také miesto určené, potom na mieste, kde sa obvykle odkladajú, "]
["h)","vzniknuté na osobných veciach zamestnancov, žiakov alebo klientov poistených organizácií uložených na mieste na to určenom, a ak nie je také miesto určené, potom na mieste, kde sa obvykle odkladajú. Maximálne krytie na jedného zamestnanca, žiaka alebo klienta pre jednu a všetky poistné udalosti v kalendárnom roku roku je 67,00 €. V prípade likvidácie poistnej udalosti s výškou škody do 33,00 €  sa policajná správa nevyžaduje. Stanovená spoluúčasť pre každú jednu poistnú udalosť  uvedenú v tomto bode je  7,00 €."]
["i)","spôsobené výkonom vlastníckeho práva, prevádzkou a správou nehnuteľností, ktoré poistený vlastní, má v prenájme alebo ich inak užíva, pokiaľ poistený za takúto škodu zodpovedá podľa príslušných právnych predpisov,"]
["j)","vzniknuté na veciach, ktoré boli ubytovanými osobami vnesené do ubytovacieho zariadenia a ak je prevádzkou niektorej činnosti poisteného alebo spolupoisteného spravidla spojené odkladanie vecí aj za škody na veciach odložených na mieste na to určenom alebo na mieste, kde sa obvykle odkladajú pokiaľ poistený za takúto škodu zodpovedá podľa príslušných právnych predpisov,"]
["k)","vzniknuté na životnom prostredí náhlym únikom znečisťujúcich látok (environmentálne škody),"]
["l)","iné ako škody na majetku alebo na zdraví t.j. čisté finančné škody. Maximálny limit plnenia pre prípad vzniku čistých finančných škôd je 5.000,00 €. Stanovená spoluúčasť pre každú jednu poistnú udalosť  uvedenú v tomto bode je  1.000,00 €."]
[]
["6.3.","Poisťovateľ  ďalej nahradí v súvislosti s poistnou udalosťou, ktorá je dôvodom vzniku práva na plnenie poisťovateľa, za poisteného výdavky:"]
["a)","občianskeho súdneho konania o náhrade škody pred príslušným orgánom, ak toto konanie bolo potrebné na zistenie zodpovednosti poisteného alebo výšky plnenia poisťovateľa, pokiaľ je povinný uhradiť, ako aj trovy právneho zastúpenia poisteného, a to všetko na všetkých stupňoch,"]
["b)","náhrady mimosúdneho prerokovávania nárokov poškodeného, vzniknuté  poškodenému alebo jeho zástupcovi, pokiaľ je poistený povinný ich uhradiť,"]
["c)","obhajoby poisteného (príp. jeho zamestnanca) v prípravnom konaní a pred súdom vedenom proti poistenému."]
["6.4. Poisťovateľ nenahradí škodu:"]
["a)","spôsobenú úmyselne alebo prevzatú dobrovoľne alebo v zmluve nad rámec stanovený právnymi predpismi,"]
["b)","spôsobenú pri budovaní alebo údržbe priehrad, hrádzí a iných stavieb na vodných dielach,"]
["c)","spôsobenú v súvislosti s prevádzkou dopravných prostriedkov s akýmkoľvek mechanickým alebo elektrickým pohonom, pokiaľ nie sú schválené pre prevádzku na verejných pozemných komunikáciách a ku škode došlo mimo areálu poškodeného,"]
["d)","spôsobenú pri banskej činnosti, sadaním, zosúvaním pôdy, eróziou, priemyselným odstrelom, vibráciami a v dôsledku poddolovania"]
["e)","spôsobenú protiprávnym užívaním veci,"]
["f)","spôsobenú jadrovými rizikami a jadrovým žiarením, azbestom a formaldehydom, toxickými látkami a vírusovými ochoreniami"]
["g)","prejavujúcu sa genetickými zmenami organizmu,"]
["h)","spôsobenú pri výrobe, skladovaní, plnení a transporte munície a výbušných látok,"]
["i)","pri nesplnení povinnosti odvrátiť škodu."]
["6.5. Poistenie sa nevzťahuje na zodpovednosť za škodu, za ktorú poistený  zodpovedá právnickej osobe, v ktorej poistený vymenúva alebo volí viac ako polovicu členov riadiaceho orgánu alebo kontrolného orgánu."]
[]
["7. Zvláštne dojednania pre poistenie zodpovednosti za škodu štatutárnych zástupcov subjektov územnej samosprávy:"]
["7.1. Odchýlne od VPP sa dojednáva, že"]
["a)","Poistením je krytá zodpovednosť za škodu štatutárnych zástupcov organizácií za dobu od uzavretia poistnej zmluvy až do ukončenia výkonu ich funkcie. V prípade nástupu nového štatutárneho zástupcu v priebehu poistného obdobia začína poistenie od okamihu nástupu do funkcie. Poistenie sa uzatvára pre prípad vzniku všeobecnej zodpovednosti za škodu, pokiaľ táto vznikla výhradne podľa ustanovenia §420 Občianskeho zákonníka (ďalej len OZ) v súvislosti s výkonom funkcie štatutárnych zástupcov organizácií, pokiaľ túto škodu spôsobil zavineným porušením právnej povinnosti vyplývajúcej zo všeobecne záväzných právnych predpisov a iných noriem (najmä zákon č. 369/1990 Zb. o obecnom zriadení v znení neskorších predpisov a iných platných právnych predpisov, nariadení a rozhodnutí štátnych orgánov regulujúcich a upravujúcich činnosť poisteného)."]
["b)","Poistnou udalosťou je vznik povinnosti poisteného nahradiť inému škodu, ak poistený zodpovedá za škodu v dôsledku svojho konania alebo vzťahu v čase trvania poistenia. Súvislosť vzniku škody s výkonom funkcie štatutárneho zástupcu subjektu územnej samosprávy musí byť preukázaná a nevzťahuje sa na škody spôsobené rozhodnutím kolektívneho orgánu."]
["7.2. Ak spôsobil poistený ako vodič škodu na motorovom vozidle, zverenom mu zamestnávateľom na výkon funkcie štatutárneho zástupcu organizácie, poisťovateľ nahradí za poisteného škodu až do výšky spoluúčasti z dobrovoľného zmluvného tzv. havarijného poistenia, ktorou sa organizácia podieľa na plnení tohto poistenia."]
["7.3. Poisťovateľ ďalej nahradí v súvislosti s poistnou udalosťou, ktorá je dôvodom vzniku práva na plnenie poistiteľa, za poisteného výdavky:"]
["a)","ktoré zodpovedajú najviac mimozmluvnej odmene advokáta za obhajobu poisteného v prípravnom konaní a konaní pred súdom prvého stupňa v trestnom konaní vedenom proti nemu v súvislosti so škodou, ktorú má poistený nahradiť,"]
["b)","občianskeho súdneho konania o náhradu škody a ak je poistený povinný tieto náklady nahradiť,"]
["c)","ktoré vynaložil poškodený v súvislosti s mimosúdnym prerokovaním nároku na náhradu škody, pokiaľ je poistený povinný ich uhradiť. "]
["7.4. Šetrenie potrebné na zistenie rozsahu poisťovne plniť je skončené, len čo sa s poškodeným dohodla výška náhrady škody alebo len čo výška náhrady škody bola určená právoplatným rozhodnutím súdu."]
["7.5.  Poisťovateľ nie je povinný plniť, ak poistený:"]
["a)","bez predchádzajúceho súhlasu poisťovateľa celkom alebo sčasti uznal nárok  poškodeného na náhradu škody, ktorý prevyšuje čiastku dohodnutej spoluúčasti"]
["b)","zodpovedá za škodu svojmu manželovi a príbuzným v priamom rade,"]
["c)","zodpovedá za škodu osobám, ktoré s ním žijú v spoločnej domácnosti,"]
["d)","zodpovedá za škodu spoločníkovi a osobám jemu blízkym,"]
["e)","zodpovedá za škodu právnickej osobe, v ktorej má poistený, jeho spoločníci alebo osoby im blízke majetkovú účasť. "]
["7.6.  Poistenie sa nevzťahuje na zodpovednosť spôsobenú inému:"]
["a)","úmyselne"]
["b)","úmyselným konaním proti dobrým mravov v zmysle ust. §424 OZ."]
["c)","prevádzkou dopravných prostriedkov v zmysle ust. §427 až § 431 OZ, poisťovateľ však nahradí za poisteného čiastku spoluúčasti z havarijného poistenia motorového vozidla, ktoré mu bolo zverené mestom alebo obcou, a na ktorom došlo ku škode jeho zavinením."]
["d)","na vnesených alebo odložených veciach v zmysle ust. § 433 až 437 OZ."]
["e)","spôsobenú úmyselne alebo prevzatú dobrovoľne alebo v zmluve nad rámec stanovený právnymi predpismi,"]
["f)","vzniknutú v súvislosti s činnosťou, pri ktorej právne predpisy ukladajú povinnosť uzavrieť poistenie zodpovednosti za škodu"]